fUST/lending_fUST_20260124
["ID","MTS","AMOUNT","RATE_DAILY","PERIOD"]
[403163220,1769226481373,-340.56461546,0.00017693,2]
[403163221,1769226481396,-409.51305313,0.00017763,7]
[403163222,1769226481420,-661.72542833,0.00017763,7]
[403163223,1769226481444,-168.53152708,0.00017763,7]
[403163224,1769226481471,-420.0,0.00017817,2]
[403163225,1769226481495,-310.3410544,0.00017962,2]
[403163226,1769226481525,-8221.03808353,0.00017971,2]
[403163227,1769226481550,-100000.0,0.0001799,2]
[403163228,1769226481574,-500.0,0.00018036,2]
[403163229,1769226481601,-187.78006525,0.00018036,2]
[403163230,1769226481625,-500.0,0.00018036,2]
[403163231,1769226481649,-194.72792766,0.00018036,2]
[403163232,1769226481672,-263.53303316,0.00018036,2]
[403163233,1769226481697,-500.0,0.00018036,2]
[403163234,1769226481722,-201.93286099,0.00018036,2]
[403163235,1769226481747,-500.0,0.00018036,2]
[403163238,1769226481773,-209.40437684,0.00018036,2]
[403163239,1769226481801,-500.0,0.00018036,2]
[403163240,1769226481826,-217.15233878,0.00018036,2]
[403163241,1769226481850,-500.0,0.00018036,2]
[403163242,1769226481875,-225.18697532,0.00018036,2]
[403163243,1769226481899,-500.0,0.00018036,2]
[403163244,1769226481925,-233.51889341,0.00018036,2]
[403163245,1769226481951,-500.0,0.00018036,2]
[403163246,1769226481977,-242.15909246,0.00018036,2]
[403163247,1769226482002,-500.0,0.00018036,2]
[403163248,1769226482027,-251.11897888,0.00018036,2]
[403163249,1769226482056,-500.0,0.00018036,2]
[403163250,1769226482081,-260.4103811,0.00018036,2]
[403163251,1769226482107,-270.0455652,0.00018036,2]
[403163252,1769226482132,-500.0,0.00018036,2]
[403163253,1769226482156,-280.03725112,0.00018036,2]
[403163254,1769226482184,-500.0,0.00018036,2]
[403163255,1769226482210,-290.39862941,0.00018036,2]
[403163256,1769226482235,-500.0,0.00018036,2]
[403163257,1769226482262,-301.1433787,0.00018036,2]
[403163258,1769226482287,-500.0,0.00018036,2]
[403163259,1769226482310,-289.41339882,0.00018036,2]
[403163260,1769226482337,-720.0,0.00018046,2]
[403163261,1769226482361,-500.0,0.00018071,2]
[403163262,1769226482385,-150.0,0.00018097,2]
[403163263,1769226482409,-500.0,0.00018097,2]
[403163264,1769226482564,-151.0,0.000182,2]
[403163265,1769226482588,-500.0,0.00018208,2]
[403163266,1769226482612,-245.06,0.00018221,3]
[403163267,1769226482637,-735.2,0.00018221,3]
[403163268,1769226482661,-980.24,0.00018231,3]
[403163269,1769226482687,-220.18654939,0.00018234,2]
[403163270,1769226482711,-500.0,0.00018234,2]
[403163271,1769226482735,-490.12,0.00018235,3]
[403163272,1769226482759,-2579.17784983,0.00018241,2]
[403163273,1769226482787,-391.45,0.00018245,2]
[403163274,1769226482810,-151.0,0.000183,2]
[403163275,1769226482834,-151.0,0.000183,2]
[403163276,1769226482858,-185.73832003,0.000183,2]
[403163277,1769226482882,-21208.3566936,0.00018334,2]
[403163278,1769226482905,-1465.604248,0.00018334,2]
[403163279,1769226482930,-500.0,0.00018345,2]
[403163280,1769226482954,-941.632,0.0001837,2]
[403163281,1769226482976,-178.83560877,0.0001837,2]
[403163282,1769226483001,-500.0,0.00018371,2]
[403163283,1769226483027,-1205.0113747,0.00018371,2]
[403163284,1769226483051,-7756.1924282,0.00018371,2]
[403163285,1769226483074,-151.0,0.00018377,2]
[403163286,1769226483096,-300542.14256856,0.000184,2]
[403163287,1769226483120,-151.0,0.000184,2]
[403163288,1769226483147,-151.0,0.00018438,2]
[403163289,1769226483169,-151.0,0.00018438,2]
[403163290,1769226483194,-500.0,0.00018482,2]
[403163291,1769226483218,-635.99,0.00018486,2]
[403163292,1769226483240,-185.73832001,0.00018495,2]
[403163293,1769226483264,-3907.3541135,0.00018495,2]
[403163294,1769226483287,-153.0637508,0.00018495,2]
[403163295,1769226483312,-500.0,0.00018497,2]
[403163296,1769226483335,-635.99,0.00018497,2]
[403163297,1769226483358,-151.0,0.000185,2]
[403163298,1769226483381,-151.0,0.000185,2]
[403163299,1769226483405,-151.0,0.000185,2]
[403163300,1769226483430,-500.0,0.00018508,2]
[403163301,1769226483454,-635.99,0.00018553,2]
[403163302,1769226483484,-151.0,0.000186,2]
[403163303,1769226483509,-151.0,0.000186,2]
[403163304,1769226483535,-500.0,0.00018619,2]
[403163305,1769226483559,-500.0,0.00018645,2]
[403163306,1769226483584,-3855.0,0.0001866,2]
[403163307,1769226483608,-635.99,0.00018662,2]
[403163308,1769226483632,-500.0,0.00018665,2]
[403163309,1769226483656,-484.42278878,0.00018665,2]
[403163310,1769226483681,-635.99,0.00018665,2]
[403163311,1769226483706,-635.99,0.00018665,2]
[403163312,1769226483730,-635.99,0.00018665,2]
[403163313,1769226483755,-635.99,0.00018665,2]
[403163314,1769226483779,-635.99,0.00018665,2]
[403163315,1769226483805,-635.99,0.00018665,2]
[403163316,1769226483830,-635.99,0.00018665,2]
[403163317,1769226483855,-635.99,0.00018665,2]
[403163318,1769226483878,-635.99,0.00018665,2]
[403163320,1769226483902,-635.99,0.00018665,2]
[403163321,1769226483926,-635.99,0.00018665,2]
[403163322,1769226483949,-635.99,0.00018665,2]
[403163323,1769226483972,-636.12614013,0.00018665,2]
[403163324,1769226483995,-481969.41547051,0.00018666,2]
[403163326,1769226489873,-87132.18442086,0.00018666,2]
[403163328,1769226489896,-2454.0,0.00018666,2]
[403163329,1769226489919,-151.968524,0.00018666,2]
[403163330,1769226489943,-152.117738,0.00018666,2]
[403163331,1769226489968,-151.0,0.00018666,2]
[403163332,1769226489990,-151.0,0.00018666,2]
[403163333,1769226490013,-151.0,0.00018666,2]
[403163334,1769226490042,-185.73832001,0.00018689,2]
[403163335,1769226490067,-500.0,0.00018756,2]
[403163336,1769226490091,-500.0,0.00018782,2]
[403163337,1769226490116,-2674.60743027,0.00018789,2]
[403163338,1769226490139,-185.73832001,0.00018884,2]
[403163339,1769226490164,-500.0,0.00018893,2]
[403163340,1769226490187,-303.10001603,0.000189,2]
[403163341,1769226490212,-3085.23,0.00018915,2]
[403163342,1769226490240,-465.03892358,0.00018919,2]
[403163343,1769226490263,-6473.38637924,0.00019,2]
[403163371,1769226632060,-501.15,0.00013607,2]
[403163372,1769226632069,-240.70337771,0.00014223,2]
[403163373,1769226632079,-1002.31,0.00014844,2]
[403163374,1769226632088,-687.74996947,0.0001608,2]
[403163375,1769226632112,-710.33255992,0.0001608,2]
[403163395,1769226638151,-105.37747061,0.0001608,2]
[403163397,1769226638160,-284.0299857,0.00016223,2]
[403163399,1769226638169,-2004.62,0.00017317,2]
[403163401,1769226638178,-1000.0,0.00017385,2]
[403163403,1769226638187,-2951.9165083,0.00017918,2]
[403163404,1769226638197,-153.0,0.00017962,2]
[403163406,1769226638206,-327.35659369,0.00018223,2]
[403163407,1769226638215,-181.92866928,0.0001854,2]
[403163408,1769226638224,-349.35023168,0.0001854,2]
[403163409,1769226638233,-163.28348267,0.0001854,2]
[403163410,1769226638242,-2487.15318209,0.00018541,2]
[403163411,1769226638250,-2257.01027678,0.00018554,2]
[403163412,1769226638261,-248.75972322,0.00018554,2]
[403163413,1769226638269,-151.0,0.00018666,2]
[403163414,1769226638278,-81.31205987,0.00018924,2]
[403163415,1769226638294,-69.68794013,0.00018924,2]
[403163416,1769226638303,-623.10272367,0.0001903,2]
[403163417,1769226638313,-185.73832001,0.00019078,2]
[403163418,1769226638322,-2579.17784983,0.00019089,2]
[403163419,1769226638331,-214.37802578,0.00019166,2]
[403163420,1769226638340,-187.78006525,0.00019167,2]
[403163421,1769226638349,-194.72792766,0.00019167,2]
[403163422,1769226638358,-201.93286099,0.00019167,2]
[403163423,1769226638367,-209.40437684,0.00019167,2]
[403163424,1769226638376,-217.15233878,0.00019167,2]
[403163425,1769226638385,-225.18697532,0.00019167,2]
[403163426,1769226638394,-500.0,0.00019167,2]
[403163427,1769226638403,-233.51889341,0.00019167,2]
[403163428,1769226638411,-500.0,0.00019167,2]
[403163429,1769226638420,-242.15909246,0.00019167,2]
[403163430,1769226638428,-205.78668852,0.00019167,2]
[403163447,1769226640404,-294.21331148,0.00019167,2]
[403163448,1769226640414,-9.37668852,0.00019167,2]
[403163468,1769226644711,-241.74229036,0.00019167,2]
[403163469,1769226644720,-260.4103811,0.00019167,2]
[403163470,1769226644729,-242.12935228,0.00019167,2]
[403163477,1769226646314,-257.87064772,0.00019167,2]
[403163478,1769226646324,-270.0455652,0.00019167,2]
[403163479,1769226646333,-280.03725112,0.00019167,2]
[403163480,1769226646342,-369.69606328,0.00019167,2]
[403163481,1769226646351,-500.0,0.00019167,2]
[403163482,1769226646360,-500.0,0.00019167,2]
[403163483,1769226646368,-500.0,0.00019167,2]
[403163484,1769226646377,-500.0,0.00019167,2]
[403163485,1769226646490,-500.0,0.00019167,2]
[403163486,1769226646499,-500.0,0.00019167,2]
[403163487,1769226646508,-500.0,0.00019167,2]
[403163488,1769226646516,-500.0,0.00019167,2]
[403163489,1769226646527,-500.0,0.00019167,2]
[403163490,1769226646537,-500.0,0.00019167,2]
[403163491,1769226646545,-620.69328702,0.00019178,2]
[403163494,1769226900789,-405.49,0.00013603,2]
[403163495,1769226900814,-234.46450782,0.00014052,2]
[403163496,1769226900838,-5111.0,0.000145,2]
[403163497,1769226900864,-810.98,0.00014839,2]
[403163498,1769226900889,-276.66811922,0.00016052,2]
[403163499,1769226900918,-1216.47,0.00016076,2]
[403163500,1769226900942,-196.49312527,0.0001667,2]
[403163501,1769226900967,-304.84853604,0.0001667,2]
[403163502,1769226900991,-475.0,0.00017015,2]
[403163503,1769226901015,-475.0,0.00017015,2]
[403163504,1769226901039,-300.0,0.00017251,2]
[403163505,1769226901065,-300.0,0.00017252,2]
[403163506,1769226901092,-300.0,0.00017252,2]
[403163507,1769226901117,-300.0,0.00017252,2]
[403163508,1769226901143,-300.0,0.00017252,2]
[403163509,1769226901167,-300.0,0.00017252,2]
[403163510,1769226901191,-300.0,0.00017252,2]
[403163511,1769226901216,-300.0,0.00017252,2]
[403163512,1769226901242,-300.0,0.00017252,2]
[403163513,1769226901265,-300.0,0.00017252,2]
[403163514,1769226901291,-300.0,0.00017252,2]
[403163515,1769226901314,-300.0,0.00017252,2]
[403163516,1769226901339,-300.0,0.00017252,2]
[403163517,1769226901362,-300.0,0.00017252,2]
[403163518,1769226901386,-300.0,0.00017252,2]
[403163519,1769226901411,-300.0,0.00017252,2]
[403163520,1769226901435,-1621.96,0.00017312,2]
[403163521,1769226901460,-600.0,0.00017596,2]
[403163522,1769226901484,-318.87173063,0.00018052,2]
[403163523,1769226901508,-753.306,0.00018416,2]
[403163524,1769226901532,-2027.45,0.00018549,2]
[403163525,1769226901554,-2035.9575291,0.00018634,2]
[403163526,1769226901578,-420.0,0.00018837,2]
[403163527,1769226901601,-779.0,0.000191,2]
[403163528,1769226901627,-500.0,0.00019178,2]
[403163529,1769226901652,-507.89,0.00019178,2]
[403163530,1769226901676,-507.89,0.00019178,2]
[403163531,1769226901703,-507.89,0.00019178,2]
[403163532,1769226901728,-1000.01,0.00019178,2]
[403163533,1769226901751,-1007.9,0.00019178,2]
[403163534,1769226901776,-507.89,0.00019178,2]
[403163535,1769226901800,-507.89,0.00019178,2]
[403163536,1769226901824,-507.89,0.00019178,2]
[403163537,1769226901848,-1269.7371,0.00019178,2]
[403163538,1769226901874,-485.0,0.00019178,5]
[403163539,1769226901903,-151.0,0.00019178,2]
[403163540,1769226901927,-151.0,0.00019178,2]
[403163541,1769226901952,-206.454267,0.00019178,2]
[403163542,1769226901976,-151.0,0.00019178,2]
[403163543,1769226902000,-206.454267,0.00019178,2]
[403163544,1769226902025,-206.454267,0.00019178,2]
[403163545,1769226902203,-206.454267,0.00019178,2]
[403163546,1769226902229,-151.0,0.00019178,2]
[403163547,1769226902254,-151.0,0.00019178,2]
[403163548,1769226902279,-151.0,0.00019178,2]
[403163549,1769226902304,-151.0,0.00019178,2]
[403163550,1769226902329,-151.0,0.00019178,2]
[403163551,1769226902355,-151.0,0.00019178,2]
[403163552,1769226902379,-151.0,0.00019178,2]
[403163553,1769226902403,-151.0,0.00019178,2]
[403163554,1769226902430,-233.690818,0.00019178,2]
[403163555,1769226902456,-151.0,0.00019178,2]
[403163556,1769226902481,-151.0,0.00019178,2]
[403163557,1769226902506,-233.690818,0.00019178,2]
[403163558,1769226902533,-151.0,0.00019178,2]
[403163559,1769226902560,-151.0,0.00019178,2]
[403163560,1769226902586,-233.690818,0.00019178,2]
[403163561,1769226902614,-151.0,0.00019178,2]
[403163562,1769226902643,-233.690818,0.00019178,2]
[403163563,1769226902672,-151.0,0.00019178,2]
[403163564,1769226902701,-151.0,0.00019178,2]
[403163565,1769226902729,-151.0,0.00019178,2]
[403163566,1769226902758,-151.0,0.00019178,2]
[403163567,1769226902788,-248.105867,0.00019178,2]
[403163568,1769226902817,-151.0,0.00019178,2]
[403163569,1769226902846,-475.967929,0.00019178,2]
[403163570,1769226902874,-151.0,0.00019178,2]
[403163571,1769226902902,-475.967929,0.00019178,2]
[403163572,1769226902931,-475.967929,0.00019178,2]
[403163573,1769226902962,-168.062806,0.00019178,2]
[403163574,1769226902989,-475.967929,0.00019178,2]
[403163575,1769226903017,-168.062806,0.00019178,2]
[403163576,1769226903054,-168.062806,0.00019178,2]
[403163577,1769226903085,-168.062806,0.00019178,2]
[403163578,1769226903113,-1527.55572,0.00019178,2]
[403163579,1769226903143,-1527.55572,0.00019178,2]
[403163580,1769226903170,-238.890396,0.00019178,2]
[403163581,1769226903197,-1527.55572,0.00019178,2]
[403163582,1769226903225,-238.890396,0.00019178,2]
[403163583,1769226903252,-1527.55572,0.00019178,2]
[403163584,1769226903281,-238.890396,0.00019178,2]
[403163585,1769226903310,-238.890396,0.00019178,2]
[403163586,1769226903338,-151.0,0.00019178,2]
[403163587,1769226903368,-796.999146,0.00019178,2]
[403163588,1769226903397,-151.0,0.00019178,2]
[403163589,1769226903427,-796.999146,0.00019178,2]
[403163590,1769226903457,-796.999146,0.00019178,2]
[403163591,1769226903484,-796.999146,0.00019178,2]
[403163592,1769226903512,-151.0,0.00019178,2]
[403163593,1769226903541,-151.0,0.00019178,2]
[403163594,1769226903568,-151.0,0.00019178,2]
[403163595,1769226903595,-1257.137234,0.00019178,2]
[403163596,1769226903624,-1257.137234,0.00019178,2]
[403163597,1769226903651,-190.632319,0.00019178,2]
[403163598,1769226903678,-197.928209,0.00019178,2]
[403163599,1769226903707,-190.632319,0.00019178,2]
[403163600,1769226903733,-197.928209,0.00019178,2]
[403163601,1769226903759,-190.632319,0.00019178,2]
[403163602,1769226903786,-1257.137234,0.00019178,2]
[403163603,1769226903814,-197.928209,0.00019178,2]
[403163604,1769226903842,-190.632319,0.00019178,2]
[403163605,1769226903869,-1257.137234,0.00019178,2]
[403163606,1769226903898,-197.928209,0.00019178,2]
[403163607,1769226903927,-158.330551,0.00019178,2]
[403163608,1769226903955,-158.330551,0.00019178,2]
[403163609,1769226903985,-151.0,0.00019178,2]
[403163610,1769226904012,-158.330551,0.00019178,2]
[403163611,1769226904041,-151.0,0.00019178,2]
[403163612,1769226904077,-158.330551,0.00019178,2]
[403163613,1769226904107,-198.400374,0.00019178,2]
[403163614,1769226904139,-198.400374,0.00019178,2]
[403163615,1769226904168,-198.400374,0.00019178,2]
[403163616,1769226904196,-198.400374,0.00019178,2]
[403163617,1769226904224,-750.272832,0.00019178,2]
[403163618,1769226904252,-750.272832,0.00019178,2]
[403163619,1769226904278,-151.0,0.00019178,2]
[403163620,1769226904304,-750.272832,0.00019178,2]
[403163621,1769226904332,-151.0,0.00019178,2]
[403163622,1769226904361,-750.272832,0.00019178,2]
[403163623,1769226904389,-151.0,0.00019178,2]
[403163624,1769226904536,-151.0,0.00019178,2]
[403163625,1769226904567,-151.0,0.00019178,2]
[403163626,1769226904597,-151.0,0.00019178,2]
[403163627,1769226904631,-151.0,0.00019178,2]
[403163628,1769226904661,-151.0,0.00019178,2]
[403163629,1769226904691,-151.0,0.00019178,2]
[403163630,1769226904720,-1139.678975,0.00019178,2]
[403163631,1769226904749,-1139.678975,0.00019178,2]
[403163632,1769226904779,-1953.354718,0.00019178,2]
[403163633,1769226904809,-1139.678975,0.00019178,2]
[403163634,1769226904844,-1953.354718,0.00019178,2]
[403163635,1769226904876,-1139.678975,0.00019178,2]
[403163636,1769226904905,-1953.354718,0.00019178,2]
[403163637,1769226904935,-1953.354718,0.00019178,2]
[403163638,1769226904967,-151.0,0.00019178,2]
[403163639,1769226904996,-151.0,0.00019178,2]
[403163640,1769226905028,-151.0,0.00019178,2]
[403163641,1769226905056,-228.7,0.00019178,5]
[403163642,1769226905083,-218.81,0.000192,2]
[403163643,1769226905110,-167.95,0.000192,2]
[403163644,1769226905144,-1317.49861331,0.00019241,2]
[403163645,1769226905173,-297.3,0.00019249,2]
[403163646,1769226905203,-7051.660207,0.00019278,7]
[403163647,1769226905235,-168.0,0.00019278,2]
[403163648,1769226905265,-1211.52,0.00019326,3]
[403163649,1769226905294,-605.76,0.00019326,3]
[403163650,1769226905323,-302.88,0.00019326,3]
[403163651,1769226905350,-151.44,0.00019326,3]
[403163652,1769226905377,-454.35,0.00019326,3]
[403163653,1769226905405,-846.4914,0.00019326,2]
[403163654,1769226905433,-659.67,0.00019326,3]
[403163655,1769226905461,-507.8948,0.00019335,2]
[403163656,1769226905487,-846.4914,0.00019335,2]
[403163657,1769226905517,-750.272832,0.00019336,2]
[403163658,1769226905544,-750.272832,0.00019336,2]
[403163659,1769226905576,-151.0,0.00019336,2]
[403163660,1769226905608,-750.272832,0.00019336,2]
[403163661,1769226905634,-151.0,0.00019336,2]
[403163662,1769226905663,-750.272832,0.00019336,2]
[403163663,1769226905696,-151.0,0.00019336,2]
[403163664,1769226905725,-151.0,0.00019336,2]
[403163665,1769226905751,-151.0,0.00019336,2]
[403163666,1769226905780,-151.0,0.00019336,2]
[403163667,1769226905807,-151.0,0.00019336,2]
[403163668,1769226905836,-151.0,0.00019336,2]
[403163669,1769226905864,-224.568125,0.00019336,2]
[403163670,1769226905893,-1139.678975,0.00019336,2]
[403163671,1769226905921,-1139.678975,0.00019336,2]
[403163672,1769226905951,-1953.354718,0.00019336,2]
[403163673,1769226905981,-1139.678975,0.00019336,2]
[403163674,1769226906011,-1139.678975,0.00019336,2]
[403163675,1769226906041,-1953.354718,0.00019336,2]
[403163676,1769226906072,-1953.354718,0.00019336,2]
[403163677,1769226906099,-1953.354718,0.00019336,2]
[403163678,1769226906126,-151.0,0.00019336,2]
[403163679,1769226906153,-151.0,0.00019336,2]
[403163680,1769226906180,-242.257187,0.00019336,2]
[403163681,1769226906208,-168.0,0.0001934,2]
[403163682,1769226906238,-720.0,0.00019356,2]
[403163683,1769226906266,-168.0,0.00019424,2]
[403163684,1769226906291,-1350.63,0.00019452,2]
[403163685,1769226906322,-168.0,0.00019474,2]
[403163686,1769226906350,-491.25,0.00019558,2]
[403163687,1769226906387,-638.0029,0.00019589,3]
[403163688,1769226906415,-338.5952,0.00019589,3]
[403163689,1769226906443,-677.1986,0.00019589,3]
[403163690,1769226906470,-846.4914,0.00019589,3]
[403163691,1769226906498,-1782.80707035,0.0001959,2]
[403163692,1769226906525,-490.12,0.00019591,3]
[403163693,1769226906551,-151.0,0.00019596,2]
[403163694,1769226906581,-1960.48,0.00019601,3]
[403163695,1769226906612,-980.24,0.00019605,3]
[403163696,1769226906640,-151.0,0.00019605,2]
[403163697,1769226906669,-151.0,0.00019605,2]
[403163698,1769226906700,-151.0,0.00019605,2]
[403163699,1769226906727,-1257.137234,0.00019605,2]
[403163700,1769226906753,-1257.137234,0.00019605,2]
[403163701,1769226906783,-190.632319,0.00019605,2]
[403163702,1769226906810,-197.928209,0.00019605,2]
[403163703,1769226906837,-190.632319,0.00019605,2]
[403163704,1769226906985,-197.928209,0.00019605,2]
[403163705,1769226907038,-190.632319,0.00019605,2]
[403163706,1769226907066,-1257.137234,0.00019605,2]
[403163707,1769226907122,-197.928209,0.00019605,2]
[403163708,1769226907167,-190.632319,0.00019605,2]
[403163709,1769226907194,-1257.137234,0.00019605,2]
[403163710,1769226907231,-197.928209,0.00019605,2]
[403163711,1769226907257,-158.330551,0.00019605,2]
[403163712,1769226907316,-158.330551,0.00019605,2]
[403163713,1769226907355,-151.0,0.00019605,2]
[403163714,1769226907385,-158.330551,0.00019605,2]
[403163715,1769226907437,-300.897228,0.00019605,2]
[403163716,1769226907467,-158.330551,0.00019605,2]
[403163717,1769226907502,-198.400374,0.00019605,2]
[403163718,1769226907535,-198.400374,0.00019605,2]
[403163719,1769226907560,-198.400374,0.00019605,2]
[403163720,1769226907601,-198.400374,0.00019605,2]
[403163721,1769226907630,-935.97390821,0.00019637,2]
[403163722,1769226907658,-5037.46576589,0.00019658,2]
[403163723,1769226907684,-800.0,0.00019659,2]
[403163724,1769226907710,-42208.463636,0.00019659,7]
[403163725,1769226907735,-151.0,0.000197,2]
[403163726,1769226907762,-151.0,0.000197,2]
[403163727,1769226907789,-151.0,0.000197,2]
[403163728,1769226907816,-151.0,0.000197,2]
[403163729,1769226907844,-181.446844,0.000197,2]
[403163730,1769226907893,-233.690818,0.000197,2]
[403163731,1769226907938,-151.0,0.000197,2]
[403163732,1769226907969,-233.690818,0.000197,2]
[403163733,1769226908006,-151.0,0.000197,2]
[403163734,1769226908068,-151.0,0.000197,2]
[403163735,1769226908115,-151.0,0.000197,2]
[403163736,1769226908170,-233.690818,0.000197,2]
[403163737,1769226908199,-151.0,0.000197,2]
[403163738,1769226908229,-233.690818,0.000197,2]
[403163739,1769226908256,-151.0,0.000197,2]
[403163740,1769226908282,-151.0,0.000197,2]
[403163741,1769226908312,-151.0,0.000197,2]
[403163742,1769226908337,-151.0,0.000197,2]
[403163743,1769226908368,-151.0,0.000197,2]
[403163744,1769226908395,-475.967929,0.000197,2]
[403163745,1769226908425,-151.0,0.000197,2]
[403163746,1769226908450,-475.967929,0.000197,2]
[403163747,1769226908476,-475.967929,0.000197,2]
[403163748,1769226908501,-168.062806,0.000197,2]
[403163749,1769226908526,-475.967929,0.000197,2]
[403163750,1769226908552,-168.062806,0.000197,2]
[403163751,1769226908578,-168.062806,0.000197,2]
[403163752,1769226908608,-168.062806,0.000197,2]
[403163753,1769226908635,-1527.55572,0.000197,2]
[403163754,1769226908663,-1527.55572,0.000197,2]
[403163755,1769226908689,-238.890396,0.000197,2]
[403163756,1769226908714,-1527.55572,0.000197,2]
[403163757,1769226908739,-238.890396,0.000197,2]
[403163758,1769226908764,-1527.55572,0.000197,2]
[403163759,1769226908790,-238.890396,0.000197,2]
[403163760,1769226908816,-238.890396,0.000197,2]
[403163761,1769226908841,-151.0,0.000197,2]
[403163762,1769226908866,-796.999146,0.000197,2]
[403163763,1769226908892,-151.0,0.000197,2]
[403163764,1769226908919,-796.999146,0.000197,2]
[403163765,1769226908943,-796.999146,0.000197,2]
[403163766,1769226908969,-796.999146,0.000197,2]
[403163767,1769226908994,-500.0,0.000197,7]
[403163768,1769226909021,-500.0,0.000197,7]
[403163769,1769226909048,-500.0,0.000197,7]
[403163770,1769226909073,-500.0,0.000197,7]
[403163771,1769226909102,-500.0,0.000197,7]
[403163772,1769226909128,-500.0,0.000197,7]
[403163773,1769226909155,-500.0,0.000197,7]
[403163774,1769226909180,-500.0,0.000197,7]
[403163775,1769226909205,-500.0,0.000197,7]
[403163776,1769226909230,-500.0,0.000197,7]
[403163777,1769226909256,-500.0,0.000197,7]
[403163778,1769226909280,-500.0,0.000197,7]
[403163779,1769226909304,-500.0,0.000197,7]
[403163780,1769226909327,-500.0,0.000197,7]
[403163781,1769226909351,-500.0,0.000197,7]
[403163782,1769226909542,-500.0,0.000197,7]
[403163783,1769226909569,-500.0,0.000197,7]
[403163784,1769226909594,-500.0,0.000197,7]
[403163785,1769226909623,-500.0,0.000197,7]
[403163786,1769226909648,-500.0,0.000197,7]
[403163787,1769226909674,-500.0,0.000197,7]
[403163788,1769226909700,-500.0,0.000197,7]
[403163789,1769226909726,-500.0,0.000197,7]
[403163790,1769226909752,-500.0,0.000197,7]
[403163791,1769226909778,-500.0,0.000197,7]
[403163792,1769226909802,-500.0,0.000197,7]
[403163793,1769226909829,-500.0,0.000197,7]
[403163794,1769226909855,-500.0,0.000197,7]
[403163795,1769226909880,-500.0,0.000197,7]
[403163796,1769226909906,-500.0,0.000197,7]
[403163797,1769226909931,-500.0,0.000197,7]
[403163798,1769226909956,-500.0,0.000197,7]
[403163799,1769226909982,-500.0,0.000197,7]
[403163800,1769226910007,-500.0,0.000197,7]
[403163801,1769226910031,-500.0,0.000197,7]
[403163802,1769226910056,-360.34,0.000197,7]
[403163803,1769226910082,-500.0,0.000197,7]
[403163804,1769226910108,-500.0,0.000197,7]
[403163805,1769226910132,-500.0,0.000197,7]
[403163806,1769226910156,-500.0,0.000197,7]
[403163807,1769226910179,-151.0,0.0001976,2]
[403163808,1769226910203,-151.0,0.0001976,2]
[403163809,1769226910227,-151.0,0.0001976,2]
[403163810,1769226910251,-288.15904,0.0001976,2]
[403163811,1769226910275,-151.0,0.0001976,2]
[403163812,1769226910299,-151.0,0.0001976,2]
[403163813,1769226910327,-151.0,0.0001976,2]
[403163814,1769226910352,-151.0,0.0001976,2]
[403163815,1769226910375,-151.0,0.0001976,2]
[403163816,1769226910399,-151.0,0.0001976,2]
[403163817,1769226910422,-151.0,0.0001976,2]
[403163818,1769226910446,-168.0,0.00019784,2]